[Event "Western Asian Juniors Chess-ch 2023"]
[Site "Colombo"]
[Date "2023.12.03"]
[Round "7.10"]
[White "Samaranayake, Pamok Methdinu"]
[Black "Wijerathna, Vinuka Dihain"]
[Result "1-0"]
[ECO "D06"]
[WhiteElo "1720"]
[BlackElo "1534"]
[Annotator "NA"]
[PlyCount "77"]
[EventDate "2023.11.30"]
[EventCountry "SRI"]
[SourceTitle "playchess.com"]
[Source "ChessBase"]
[SourceQuality "1"]
[TimeControl "5400+30"]

1. Nf3 {[%emt 0:00:06]} d5 {[%emt 0:00:15]} 2. e3 {[%emt 0:00:08]} Nc6 {[%emt 0:01:37]} 3. d4 {[%emt 0:00:24]} Bf5 {[%emt 0:00:49]} 4. c4 {[%emt 0:03:59]} e6 {[%emt 0:01:05]} 5. a3 {[%emt 0:00:10]} Nf6 {[%emt 0:01:06]} 6. Nc3 {[%emt 0:00:29]} Be7 {[%emt 1:28:38]} 7. Be2 {[%emt 0:10:32]} Ne4 8. cxd5 {[%emt 1:18:42]} Nxc3 {[%emt 0:00:00]} 9. bxc3 {[%emt 0:00:00]} exd5 {[%emt 0:00:00]} 10. c4 {[%emt 0:00:00]} O-O {[%emt 0:00:00]} 11. O-O {[%emt 0:00:00]} Bf6 {[%emt 0:00:00]} 12. Bb2 {[%emt 0:00:00]} Ne7 {[%emt 0:00:00]} 13. Qb3 {[%emt 0:00:00]} c6 {[%emt 0:00:00]} 14. a4 {[%emt 0:00:00]} Rb8 {[%emt 0:00:00]} 15. Bd3 {[%emt 0:00:00]} dxc4 {[%emt 0:00:00]} 16. Bxc4 {[%emt 0:00:00]} b5 {[%emt 0:00:00]} 17. axb5 {[%emt 0:04:30]} cxb5 {[%emt 0:00:00]} 18. Bd3 {[%emt 0:00:00]} Bxd3 {[%emt 0:00:00]} 19. Qxd3 {[%emt 0:00:00]} Qb6 {[%emt 0:00:00]} 20. e4 {[%emt 0:00:00]} Nc6 {[%emt 0:00:00]} 21. e5 {[%emt 0:00:00]} Be7 {[%emt 0:00:00]} 22. d5 {[%emt 0:00:00]} Rfd8 {[%emt 0:00:00]} 23. Qe4 {[%emt 0:00:00]} Na5 {[%emt 0:00:00]} 24. Bd4 {[%emt 0:00:00]} Qa6 {[%emt 0:00:00]} 25. d6 {[%emt 0:00:00]} Bf8 {[%emt 0:00:00]} 26. Qe2 {[%emt 0:00:00]} Rdc8 {[%emt 0:00:00]} 27. Qa2 {[%emt 0:00:00]} Qc6 {[%emt 0:00:00]} 28. Qxa5 {[%emt 0:00:00]} b4 {[%emt 0:00:00]} 29. Qxa7 {[%emt 0:00:00]} Ra8 {[%emt 0:00:00]} 30. Qb6 {[%emt 0:00:00]} Rxa1 {[%emt 0:00:00]} 31. Rxa1 {[%emt 0:00:00]} Qc1+ {[%emt 0:00:00]} 32. Ne1 {[%emt 0:00:00]} Qg5 {[%emt 0:00:00]} 33. Qxb4 {[%emt 0:00:00]} Rc1 {[%emt 0:00:00]} 34. Rxc1 {[%emt 0:00:00]} Qxc1 {[%emt 0:00:00]} 35. Qc3 {[%emt 0:00:00]} Qxc3 {[%emt 0:00:00]} 36. Bxc3 {[%emt 0:00:00]} f6 {[%emt 0:00:00]} 37. f4 {[%emt 0:00:00]} fxe5 {[%emt 0:00:00]} 38. fxe5 {[%emt 0:00:00]} Kf7 {[%emt 0:00:00]} 39. Nd3 {[%emt 0:00:00]} 1-0

[Event "Western Asian Juniors Chess-ch 2023"]
[Site "Colombo"]
[Date "2023.12.04"]
[Round "8.1"]
[White "Harshavardhan G B"]
[Black "Thilakarathne, G M H"]
[Result "0-1"]
[ECO "E20"]
[WhiteElo "2390"]
[BlackElo "2389"]
[Annotator "RC"]
[PlyCount "148"]
[EventDate "2023.11.30"]
[EventCountry "SRI"]
[SourceTitle "playchess.com"]
[Source "ChessBase"]
[SourceQuality "1"]
[TimeControl "5400+30"]

1. d4 {[%emt 0:00:10]} Nf6 {[%emt 0:04:18]} 2. c4 {[%emt 0:00:16]} e6 {[%emt 0:00:01]} 3. Nc3 {[%emt 0:00:23]} Bb4 {[%emt 0:00:02]} 4. f3 {[%emt 0:00:09]} d5 {[%emt 0:00:10]} 5. a3 {[%emt 0:00:09]} Be7 {[%emt 0:00:08]} 6. e4 {[%emt 0:00:16]} dxe4 {[%emt 0:00:06]} 7. fxe4 {[%emt 0:00:07]} c5 {[%emt 0:00:04]} 8. d5 {[%emt 0:00:09]} exd5 {[%emt 0:00:04]} 9. exd5 {[%emt 0:00:07]} O-O {[%emt 0:00:08]} 10. Be2 {[%emt 0:00:10]} Re8 {[%emt 0:00:18]} 11. Nf3 {[%emt 0:00:20]} Bg4 {[%emt 0:02:01]} 12. O-O {[%emt 0:00:10]} Bd6 {[%emt 0:00:12]} 13. Nb5 {[%emt 0:02:42]} a6 {[%emt 0:07:16]} 14. Nxd6 {[%emt 0:02:52]} Qxd6 {[%emt 0:00:16]} 15. Nd4 {[%emt 0:06:02]} Re4 {[%emt 0:19:05]} 16. Nf3 {[%emt 0:02:27]} Nbd7 {[%emt 0:04:50]} 17. Bd3 {[%emt 0:03:13]} Re7 {[%emt 0:00:33]} 18. Qc2 {[%emt 0:02:37]} Bxf3 {[%emt 0:11:50]} 19. Rxf3 {[%emt 0:00:59]} Re1+ {[%emt 0:12:22]} 20. Rf1 {[%emt 0:02:56]} Rxf1+ {[%emt 0:14:58]} 21. Bxf1 {[%emt 0:00:16]} Ng4 {[%emt 0:01:26]} 22. g3 {[%emt 0:03:12]} Qf6 {[%emt 0:03:05]} 23. h3 {[%emt 0:06:41]} Nge5 {[%emt 0:10:32]} 24. Qf2 {[%emt 0:20:26]} Qg6 {[%emt 0:00:26]} 25. Qe3 {[%emt 0:07:04]} h5 {[%emt 0:03:54]} 26. Bd2 {[%emt 0:04:28]} h4 {[%emt 0:00:54]} 27. Bc3 {[%emt 0:00:51]} Re8 {[%emt 0:00:27]} 28. g4 {[%emt 0:07:05]} f5 {[%emt 0:01:12]} 29. g5 {[%emt 0:01:38]} Nxc4 {[%emt 0:01:03]} 30. Qf2 {[%emt 0:08:29]} Qxg5+ {[%emt 0:00:16]} 31. Kh1 {[%emt 0:00:36]} Nd6 {[%emt 0:00:49]} 32. Bg2 {[%emt 0:03:11]} Qg3 {[%emt 0:01:54]} 33. Qxg3 {[%emt 0:03:12]} hxg3 {[%emt 0:00:01]} 34. Bd2 {[%emt 0:00:10]} Nf6 {[%emt 0:01:18]} 35. Rf1 {[%emt 0:01:42]} Nfe4 {[%emt 0:00:22]} 36. Bf4 {[%emt 0:02:42]} g5 {[%emt 0:01:00]} 37. Bxe4 {[%emt 0:00:21]} Nxe4 {[%emt 0:00:18]} 38. Bc7 {[%emt 0:01:23]} f4 {[%emt 0:00:12]} 39. d6 {[%emt 0:00:41]} Nf6 {[%emt 0:00:15]} 40. h4 {[%emt 0:01:58]} Re2 {[%emt 0:00:21]} 41. Kg1 {[%emt 0:00:40]} gxh4 {[%emt 0:00:18]} 42. d7 {[%emt 0:01:24]} Nxd7 {[%emt 0:00:02]} 43. Rxf4 {[%emt 0:00:05]} Rxb2 {[%emt 0:01:17]} 44. Rxh4 {[%emt 0:00:07]} g2 {[%emt 0:00:07]} 45. Rh5 {[%emt 0:01:12]} Kf7 {[%emt 0:00:14]} 46. Rh7+ {[%emt 0:02:52]} Ke6 {[%emt 0:00:18]} 47. Rh6+ {[%emt 0:00:28]} Kf5 {[%emt 0:00:24]} 48. Rh5+ {[%emt 0:00:19]} Ke4 {[%emt 0:00:18]} 49. Rh4+ {[%emt 0:00:15]} Kd5 {[%emt 0:00:26]} 50. Rh6 {[%emt 0:00:10]} Ke4 {[%emt 0:00:38]} 51. Rd6 {[%emt 0:00:44]} Nf8 {[%emt 0:00:17]} 52. Rf6 {[%emt 0:00:26]} Nh7 {[%emt 0:00:10]} 53. Rf4+ {[%emt 0:00:12]} Kd5 {[%emt 0:00:15]} 54. Rf7 {[%emt 0:00:14]} Ng5 {[%emt 0:00:31]} 55. Rf5+ {[%emt 0:00:09]} Kc6 {[%emt 0:00:08]} 56. Rxg5 {[%emt 0:00:08]} Kxc7 {[%emt 0:00:01]} 57. Rxc5+ {[%emt 0:00:11]} Kb6 {[%emt 0:00:01]} 58. Rg5 {[%emt 0:00:16]} Ra2 {[%emt 0:00:07]} 59. Rg3 {[%emt 0:00:08]} Ka5 {[%emt 0:00:05]} 60. Rh3 {[%emt 0:00:37]} b5 {[%emt 0:00:06]} 61. Rg3 {[%emt 0:00:09]} Ka4 {[%emt 0:00:05]} 62. Rg6 {[%emt 0:00:06]} a5 {[%emt 0:00:04]} 63. Rg4+ {[%emt 0:00:16]} Kxa3 {[%emt 0:00:06]} 64. Rg3+ {[%emt 0:00:04]} Ka4 {[%emt 0:00:05]} 65. Re3 {[%emt 0:00:06]} b4 {[%emt 0:00:05]} 66. Re1 {[%emt 0:00:04]} b3 {[%emt 0:00:05]} 67. Kh2 {[%emt 0:00:03]} b2 {[%emt 0:00:09]} 68. Re4+ {[%emt 0:00:17]} Kb3 {[%emt 0:00:08]} 69. Re8 {[%emt 0:00:06]} b1=Q {[%emt 0:10:03]} 70. Rb8+ {[%emt 0:00:05]} Kc2 {[%emt 0:00:00]} 71. Rc8+ {[%emt 0:00:27]} Kd1 {[%emt 0:00:00]} 72. Rd8+ {[%emt 0:00:04]} Rd2 {[%emt 0:00:00]} 73. Rg8 {[%emt 0:00:11]} g1=Q+ {[%emt 0:00:00]} 74. Kh3 {[%emt 0:00:04]} Rh2# {[%emt 0:00:00]} 0-1

[Event "Western Asian Juniors Chess-ch 2023"]
[Site "Colombo"]
[Date "2023.12.04"]
[Round "8.2"]
[White "De Silva, L M S T"]
[Black "Hommadov, Amanmuhammet"]
[Result "1-0"]
[ECO "E62"]
[WhiteElo "2394"]
[BlackElo "2055"]
[Annotator "RC"]
[PlyCount "71"]
[EventDate "2023.11.30"]
[EventCountry "SRI"]
[SourceTitle "playchess.com"]
[Source "ChessBase"]
[SourceQuality "1"]
[TimeControl "5400+30"]

1. Nf3 {[%emt 0:02:14]} Nf6 {[%emt 0:00:06]} 2. b3 {[%emt 0:00:14]} g6 {[%emt 0:00:32]} 3. Bb2 {[%emt 0:00:06]} Bg7 {[%emt 0:00:04]} 4. g3 {[%emt 0:00:07]} O-O {[%emt 0:00:06]} 5. Bg2 {[%emt 0:00:03]} d6 {[%emt 0:00:10]} 6. d4 {[%emt 0:00:31]} d5 {[%emt 0:00:34]} 7. O-O {[%emt 0:01:40]} Bf5 {[%emt 1:32:28]} 8. c4 {[%emt 0:01:25]} c6 {[%emt 0:00:00]} 9. Nc3 {[%emt 0:02:28]} Ne4 {[%emt 0:00:00]} 10. Nh4 {[%emt 0:11:16]} Nxc3 {[%emt 0:00:00]} 11. Bxc3 {[%emt 0:00:02]} Be6 {[%emt 0:00:00]} 12. Qd3 {[%emt 0:02:02]} Nd7 {[%emt 0:00:00]} 13. Rad1 {[%emt 0:03:19]} Nf6 {[%emt 0:00:00]} 14. f3 {[%emt 0:17:32]} c5 {[%emt 0:00:00]} 15. f4 {[%emt 0:11:03]} dxc4 {[%emt 0:00:00]} 16. bxc4 {[%emt 0:00:19]} cxd4 {[%emt 0:00:00]} 17. Bxd4 {[%emt 0:02:35]} Qc8 {[%emt 0:00:00]} 18. c5 {[%emt 0:04:01]} Bh3 {[%emt 0:00:00]} 19. Qf3 {[%emt 0:06:12]} Bxg2 {[%emt 0:06:00]} 20. Nxg2 {[%emt 0:00:16]} Rd8 {[%emt 0:00:00]} 21. Ne3 {[%emt 0:01:03]} Ng4 {[%emt 0:00:00]} 22. Bxg7 {[%emt 0:08:34]} Qxc5 {[%emt 0:00:00]} 23. Bd4 {[%emt 0:01:00]} Rxd4 {[%emt 0:00:00]} 24. Rc1 {[%emt 0:00:01]} Rc4 {[%emt 0:00:00]} 25. Rxc4 {[%emt 0:00:10]} Qxe3+ {[%emt 0:00:00]} 26. Kg2 {[%emt 0:02:09]} Qe6 {[%emt 0:00:00]} 27. Re4 {[%emt 0:01:35]} Qd7 {[%emt 0:00:00]} 28. h3 {[%emt 0:04:46]} Nf6 {[%emt 0:00:00]} 29. Rb4 {[%emt 0:00:22]} Rc8 {[%emt 0:00:00]} 30. Rxb7 {[%emt 0:02:34]} Qe6 {[%emt 0:00:00]} 31. Rb2 {[%emt 0:02:22]} Ne4 {[%emt 0:00:00]} 32. f5 {[%emt 0:01:43]} Qe5 {[%emt 0:00:00]} 33. fxg6 {[%emt 0:00:39]} fxg6 {[%emt 0:00:00]} 34. Rc2 {[%emt 0:00:29]} Rd8 {[%emt 0:00:00]} 35. Qe3 {[%emt 0:04:19]} Rd4 {[%emt 0:00:00]} 36. Qf4 {[%emt 0:03:12]} 1-0

[Event "Western Asian Juniors Chess-ch 2023"]
[Site "Colombo"]
[Date "2023.12.04"]
[Round "8.3"]
[White "Mazhkenov, Alisher"]
[Black "Ankit Ray"]
[Result "1/2-1/2"]
[ECO "B32"]
[WhiteElo "2105"]
[BlackElo "1902"]
[Annotator "NA RC"]
[PlyCount "70"]
[EventDate "2023.11.30"]
[EventCountry "SRI"]
[SourceTitle "playchess.com"]
[Source "ChessBase"]
[SourceQuality "1"]
[TimeControl "5400+30"]

1. e4 {[%emt 0:00:53]} c5 {[%emt 0:00:06]} 2. Nf3 {[%emt 0:01:00]} Nc6 {[%emt 0:00:09]} 3. d4 {[%emt 0:00:38]} cxd4 {[%emt 0:00:32]} 4. Nxd4 {[%emt 0:00:17]} e5 {[%emt 0:01:26]} 5. Nb5 {[%emt 0:06:55]} d6 {[%emt 0:00:57]} 6. N1c3 {[%emt 0:03:10]} a6 {[%emt 0:00:30]} 7. Na3 {[%emt 0:00:09]} Be6 {[%emt 0:00:09]} 8. Nc4 {[%emt 0:13:05]} Rb8 {[%emt 0:00:58]} 9. Bd3 {[%emt 0:04:05]} Be7 {[%emt 0:03:04]} 10. O-O {[%emt 0:00:46]} Nf6 {[%emt 0:00:14]} 11. Bg5 {[%emt 0:02:01]} d5 {[%emt 0:12:06]} 12. exd5 {[%emt 0:18:14]} Nxd5 {[%emt 0:00:12]} 13. Bxe7 {[%emt 0:06:07]} Qxe7 {[%emt 0:01:41]} 14. Nxd5 {[%emt 0:06:45]} Bxd5 {[%emt 0:00:11]} 15. Re1 {[%emt 0:02:29]} Bxc4 {[%emt 0:02:07]} 16. Bxc4 {[%emt 0:00:13]} O-O {[%emt 0:00:38]} 17. c3 {[%emt 0:01:07]} Rbd8 {[%emt 0:01:44]} 18. Qf3 {[%emt 0:05:43]} Qc5 {[%emt 0:04:16]} 19. Bd3 {[%emt 0:03:52]} g6 {[%emt 0:12:40]} 20. Be4 {[%emt 0:04:10]} Rd2 {[%emt 0:11:21]} 21. b4 {[%emt 0:04:43]} Qd6 {[%emt 0:01:03]} 22. Qe3 {[%emt 0:02:27]} Nd8 {[%emt 0:04:07]} 23. Re2 {[%emt 0:01:26]} Rxe2 {[%emt 0:01:41]} 24. Qxe2 {[%emt 0:00:07]} Qc7 {[%emt 0:00:10]} 25. Qe3 {[%emt 0:02:59]} Ne6 {[%emt 0:00:34]} 26. Re1 {[%emt 0:01:10]} Rc8 {[%emt 0:00:53]} 27. g3 {[%emt 0:01:33]} b5 {[%emt 0:08:11]} 28. Bd5 {[%emt 0:00:58]} Qxc3 {[%emt 0:00:40]} 29. Qxe5 {[%emt 0:02:14]} Qxe5 {[%emt 0:00:50]} 30. Rxe5 {[%emt 0:00:04]} Rc2 {[%emt 0:02:24]} 31. Bb3 {[%emt 0:01:19]} Rd2 {[%emt 0:00:44]} 32. Bxe6 {[%emt 0:03:59]} fxe6 {[%emt 0:30:12]} 33. Rxe6 {[%emt 0:00:10]} Rxa2 {[%emt 0:00:00]} 34. Re7 {[%emt 0:01:17]} Ra4 {[%emt 0:00:00]} 35. Ra7 {[%emt 0:00:07]} g5 {[%emt 0:00:00]} 1/2-1/2

[Event "Western Asian Juniors Chess-ch 2023"]
[Site "Colombo"]
[Date "2023.12.04"]
[Round "8.4"]
[White "Raahul V S"]
[Black "Dissanayake, R K T"]
[Result "1-0"]
[ECO "E67"]
[WhiteElo "2350"]
[BlackElo "1865"]
[Annotator "RC"]
[PlyCount "61"]
[EventDate "2023.11.30"]
[EventCountry "SRI"]
[SourceTitle "playchess.com"]
[Source "ChessBase"]
[SourceQuality "1"]
[TimeControl "5400+30"]

1. c4 {[%emt 0:00:16]} e5 {[%emt 0:00:08]} 2. Nc3 {[%emt 0:00:09]} Nf6 {[%emt 0:00:07]} 3. g3 {[%emt 0:00:29]} g6 {[%emt 0:00:59]} 4. Bg2 {[%emt 0:02:16]} Bg7 {[%emt 0:00:09]} 5. Nf3 {[%emt 0:00:06]} d6 {[%emt 0:00:07]} 6. d4 {[%emt 0:00:53]} Nbd7 {[%emt 0:00:29]} 7. O-O {[%emt 0:00:36]} O-O {[%emt 0:00:08]} 8. Qc2 {[%emt 0:01:44]} exd4 {[%emt 0:00:57]} 9. Nxd4 {[%emt 0:00:06]} Re8 {[%emt 0:00:36]} 10. b3 {[%emt 0:05:51]} c6 {[%emt 0:04:21]} 11. Ba3 {[%emt 0:03:00]} Qc7 {[%emt 0:08:37]} 12. Rad1 {[%emt 0:00:29]} a5 {[%emt 0:04:33]} 13. Rd2 {[%emt 0:06:57]} Nc5 {[%emt 0:01:47]} 14. Rfd1 {[%emt 0:01:59]} Bf8 {[%emt 0:01:19]} 15. e4 {[%emt 0:02:40]} Be6 {[%emt 0:03:41]} 16. Nxe6 {[%emt 0:09:54]} Rxe6 {[%emt 0:01:59]} 17. Bxc5 {[%emt 0:00:30]} dxc5 {[%emt 0:00:08]} 18. f4 {[%emt 0:00:02]} Ree8 {[%emt 0:15:39]} 19. e5 {[%emt 0:00:53]} Nh5 {[%emt 0:03:34]} 20. Rd7 {[%emt 0:01:04]} Qb8 {[%emt 0:01:19]} 21. Ne4 {[%emt 0:02:29]} Be7 {[%emt 0:05:10]} 22. Bh3 {[%emt 0:12:23]} f5 {[%emt 0:10:21]} 23. exf6 {[%emt 0:03:13]} Bxf6 {[%emt 0:02:32]} 24. Bg4 {[%emt 0:01:05]} Rxe4 {[%emt 0:07:35]} 25. Qxe4 {[%emt 0:00:05]} Ng7 {[%emt 0:00:17]} 26. Be6+ {[%emt 0:01:05]} Kh8 {[%emt 0:00:15]} 27. Rf7 {[%emt 0:00:07]} Bd4+ {[%emt 0:01:27]} 28. Rxd4 {[%emt 0:00:08]} cxd4 {[%emt 0:00:06]} 29. Qxd4 {[%emt 0:00:03]} Qg8 {[%emt 0:00:15]} 30. Rxb7 {[%emt 0:00:13]} Rd8 {[%emt 0:00:58]} 31. Rxg7 {[%emt 0:00:13]} 1-0

[Event "Western Asian Juniors Chess-ch 2023"]
[Site "Colombo"]
[Date "2023.12.04"]
[Round "8.5"]
[White "Liyanage, Ranindu Dilshan"]
[Black "Janukshan, B."]
[Result "1-0"]
[ECO "A34"]
[WhiteElo "2400"]
[BlackElo "1635"]
[Annotator "RC"]
[PlyCount "121"]
[EventDate "2023.11.30"]
[EventCountry "SRI"]
[SourceTitle "playchess.com"]
[Source "ChessBase"]
[SourceQuality "1"]
[TimeControl "5400+30"]

1. Nf3 {[%emt 0:06:21]} Nf6 {[%emt 0:00:38]} 2. c4 {[%emt 0:00:11]} c5 {[%emt 0:00:52]} 3. Nc3 {[%emt 0:00:13]} Nc6 {[%emt 0:00:55]} 4. e3 {[%emt 0:00:09]} e5 {[%emt 0:03:33]} 5. Be2 {[%emt 0:09:52]} d5 {[%emt 0:07:48]} 6. cxd5 {[%emt 0:13:08]} Nxd5 {[%emt 0:00:19]} 7. Qa4 {[%emt 0:01:55]} Nb6 {[%emt 0:04:41]} 8. Qc2 {[%emt 0:00:52]} Be7 {[%emt 0:08:21]} 9. b3 {[%emt 0:03:20]} O-O {[%emt 0:07:48]} 10. Bb2 {[%emt 0:00:52]} f5 {[%emt 0:04:12]} 11. d3 {[%emt 0:00:14]} Be6 {[%emt 0:04:31]} 12. Rd1 {[%emt 0:03:21]} Rc8 {[%emt 0:03:07]} 13. O-O {[%emt 0:03:34]} Bf6 {[%emt 0:07:06]} 14. Qb1 {[%emt 0:01:33]} Rf7 {[%emt 0:02:09]} 15. Nb5 {[%emt 0:08:20]} Rd7 {[%emt 0:08:17]} 16. Qa1 {[%emt 0:03:29]} a6 {[%emt 0:02:58]} 17. Na3 {[%emt 0:00:26]} Qc7 {[%emt 0:00:33]} 18. Rfe1 {[%emt 0:11:44]} Bf7 {[%emt 0:05:26]} 19. h3 {[%emt 0:04:29]} Nd5 {[%emt 0:04:39]} 20. Rc1 {[%emt 0:03:07]} b6 {[%emt 0:08:07]} 21. d4 {[%emt 0:02:08]} e4 {[%emt 0:01:50]} 22. Ne5 {[%emt 0:00:42]} Bxe5 {[%emt 0:01:48]} 23. dxe5 {[%emt 0:00:06]} Ndb4 {[%emt 0:04:43]} 24. Nc4 {[%emt 0:00:37]} Bxc4 {[%emt 0:01:06]} 25. Bxc4+ {[%emt 0:00:22]} Kh8 {[%emt 0:02:41]} 26. Be6 {[%emt 0:01:17]} Nd3 {[%emt 0:01:47]} 27. Bxf5 {[%emt 0:01:08]} Nxe1 {[%emt 0:01:20]} 28. Rxe1 {[%emt 0:00:58]} Nb4 {[%emt 0:01:02]} 29. Bxe4 {[%emt 0:10:49]} Rcd8 {[%emt 0:01:33]} 30. Bc3 {[%emt 0:00:34]} Nd5 {[%emt 0:00:42]} 31. Bb2 {[%emt 0:00:21]} c4 {[%emt 0:00:55]} 32. bxc4 {[%emt 0:00:48]} Qxc4 {[%emt 0:00:16]} 33. Bd4 {[%emt 0:00:13]} Nb4 {[%emt 0:00:39]} 34. Qb1 {[%emt 0:00:38]} Nxa2 {[%emt 0:00:33]} 35. Bxh7 {[%emt 0:00:56]} Nc3 {[%emt 0:00:32]} 36. Qc2 {[%emt 0:00:14]} Qa2 {[%emt 0:00:31]} 37. Qxc3 {[%emt 0:01:28]} Kxh7 {[%emt 0:00:05]} 38. Qd3+ {[%emt 0:02:19]} Kg8 {[%emt 0:00:09]} 39. Qg6 {[%emt 0:07:12]} Rf8 {[%emt 0:00:45]} 40. f4 {[%emt 0:00:00]} Qd2 {[%emt 0:00:40]} 41. Rf1 {[%emt 0:00:00]} Rxd4 {[%emt 0:00:44]} 42. exd4 {[%emt 0:00:00]} Qxd4+ {[%emt 0:00:04]} 43. Kh2 {[%emt 0:00:00]} Rxf4 {[%emt 0:00:08]} 44. Re1 {[%emt 0:00:00]} Rf7 {[%emt 0:01:24]} 45. Qc6 {[%emt 0:00:00]} Qf2 {[%emt 0:00:32]} 46. Re4 {[%emt 0:00:00]} Rf4 {[%emt 0:00:27]} 47. Qe8+ {[%emt 0:00:39]} Kh7 {[%emt 0:00:10]} 48. Qh5+ {[%emt 0:00:03]} Kg8 {[%emt 0:00:05]} 49. Re2 {[%emt 0:00:05]} Qc5 {[%emt 0:00:22]} 50. Qg6 {[%emt 0:00:11]} Rf7 {[%emt 0:01:23]} 51. Qe6 {[%emt 0:00:35]} Qd4 {[%emt 0:00:25]} 52. Qc8+ {[%emt 0:01:06]} Rf8 {[%emt 0:00:31]} 53. Qxa6 {[%emt 0:00:30]} Qf4+ {[%emt 0:00:32]} 54. g3 {[%emt 0:00:06]} Qd4 {[%emt 0:00:25]} 55. Qa2+ {[%emt 0:00:08]} Kh8 {[%emt 0:00:04]} 56. e6 {[%emt 0:00:21]} Rf1 {[%emt 0:00:24]} 57. Qa8+ {[%emt 0:00:18]} Kh7 {[%emt 0:00:06]} 58. Qg2 {[%emt 0:00:36]} Rf8 {[%emt 0:00:08]} 59. e7 {[%emt 0:00:14]} Re8 {[%emt 0:00:19]} 60. Qf3 {[%emt 0:00:19]} Qf6 {[%emt 0:01:39]} 61. Qh5+ {[%emt 0:00:06]} 1-0

[Event "Western Asian Juniors Chess-ch 2023"]
[Site "Colombo"]
[Date "2023.12.04"]
[Round "8.6"]
[White "Mujahid Bin Yazeed"]
[Black "Orozbaev, Eldiar"]
[Result "0-1"]
[ECO "C06"]
[WhiteElo "1832"]
[BlackElo "2278"]
[Annotator "RC"]
[PlyCount "40"]
[EventDate "2023.11.30"]
[EventCountry "SRI"]
[SourceTitle "playchess.com"]
[Source "ChessBase"]
[SourceQuality "1"]
[TimeControl "5400+30"]

1. e4 {[%emt 0:03:46]} e6 {[%emt 0:00:19]} 2. d4 {[%emt 0:00:14]} d5 {[%emt 0:00:04]} 3. Nc3 {[%emt 0:00:22]} Nf6 {[%emt 0:00:06]} 4. e5 {[%emt 0:00:12]} Nfd7 {[%emt 0:00:05]} 5. Nce2 {[%emt 0:00:05]} c5 {[%emt 0:00:05]} 6. c3 {[%emt 0:00:04]} Nc6 {[%emt 0:00:04]} 7. Nf3 {[%emt 0:03:25]} Qb6 {[%emt 0:01:39]} 8. a3 {[%emt 0:01:38]} cxd4 {[%emt 0:04:20]} 9. cxd4 {[%emt 0:00:14]} f6 {[%emt 0:00:03]} 10. exf6 {[%emt 0:03:02]} Nxf6 {[%emt 0:00:12]} 11. Nc3 {[%emt 0:02:07]} Bd6 {[%emt 0:00:14]} 12. Bd3 {[%emt 0:04:00]} O-O {[%emt 0:00:21]} 13. O-O {[%emt 0:01:14]} e5 {[%emt 0:03:04]} 14. dxe5 {[%emt 0:03:40]} Nxe5 {[%emt 0:00:06]} 15. Be2 {[%emt 0:07:08]} Nxf3+ {[%emt 0:02:03]} 16. Bxf3 {[%emt 0:00:26]} d4 {[%emt 0:00:09]} 17. Ne4 {[%emt 0:03:33]} Nxe4 {[%emt 0:00:19]} 18. Bxe4 {[%emt 0:00:03]} Bf5 {[%emt 0:00:45]} 19. Bf3 {[%emt 0:03:46]} Be5 {[%emt 0:02:48]} 20. Bd2 {[%emt 0:00:30]} d3 {[%emt 0:00:30]} 0-1

[Event "Western Asian Juniors Chess-ch 2023"]
[Site "Colombo"]
[Date "2023.12.04"]
[Round "8.7"]
[White "Senevirathne, S D B K"]
[Black "Samaranayake, Pamok Methdinu"]
[Result "1/2-1/2"]
[ECO "B33"]
[WhiteElo "1802"]
[BlackElo "1720"]
[Annotator "NA RC"]
[PlyCount "78"]
[EventDate "2023.11.30"]
[EventCountry "SRI"]
[SourceTitle "playchess.com"]
[Source "ChessBase"]
[SourceQuality "1"]
[TimeControl "5400+30"]

1. e4 {[%emt 0:00:04]} c5 {[%emt 0:00:17]} 2. Nf3 {[%emt 0:00:07]} Nc6 {[%emt 0:00:04]} 3. d4 {[%emt 0:00:05]} cxd4 {[%emt 0:00:02]} 4. Nxd4 {[%emt 0:00:05]} Nf6 {[%emt 0:00:04]} 5. Nc3 {[%emt 0:00:20]} e5 {[%emt 0:00:05]} 6. Ndb5 {[%emt 0:00:04]} d6 {[%emt 0:00:03]} 7. Nd5 {[%emt 0:00:06]} Nxd5 {[%emt 0:00:05]} 8. exd5 {[%emt 0:00:06]} Nb8 {[%emt 0:00:02]} 9. c4 {[%emt 0:00:09]} Be7 {[%emt 0:00:03]} 10. Bd3 {[%emt 0:00:07]} O-O {[%emt 0:00:09]} 11. O-O {[%emt 0:01:25]} a6 {[%emt 0:00:05]} 12. Nc3 {[%emt 0:00:05]} f5 {[%emt 0:00:04]} 13. f3 {[%emt 0:00:05]} Nd7 {[%emt 0:00:17]} 14. a3 {[%emt 0:01:36]} Bg5 {[%emt 0:06:09]} 15. b4 {[%emt 0:06:29]} b6 {[%emt 0:05:59]} 16. Qc2 {[%emt 0:07:16]} g6 {[%emt 0:03:55]} 17. Qe2 {[%emt 0:08:04]} e4 {[%emt 0:17:48]} 18. Bxg5 {[%emt 0:04:08]} Qxg5 {[%emt 0:00:12]} 19. fxe4 {[%emt 0:01:19]} f4 {[%emt 0:00:05]} 20. Qd2 {[%emt 0:27:47]} Ne5 {[%emt 0:08:12]} 21. Ne2 {[%emt 0:09:37]} Bh3 {[%emt 0:10:07]} 22. Nxf4 {[%emt 0:17:46]} Rxf4 {[%emt 0:01:03]} 23. Rxf4 {[%emt 0:00:04]} Nf3+ {[%emt 0:00:52]} 24. Rxf3 {[%emt 0:00:03]} Qxd2 {[%emt 0:00:05]} 25. Rxh3 {[%emt 0:00:04]} Rf8 {[%emt 0:01:54]} 26. Rf1 {[%emt 0:02:37]} Rxf1+ {[%emt 0:00:12]} 27. Bxf1 {[%emt 0:00:02]} Qd4+ {[%emt 0:00:28]} 28. Kh1 {[%emt 0:00:04]} Qxe4 {[%emt 0:00:10]} 29. Rf3 {[%emt 0:00:47]} Kg7 {[%emt 0:00:12]} 30. h3 {[%emt 0:00:41]} Qd4 {[%emt 0:02:36]} 31. g3 {[%emt 0:02:23]} Qe4 {[%emt 0:01:18]} 32. Kg2 {[%emt 0:00:05]} Qd4 {[%emt 0:00:16]} 33. Be2 {[%emt 0:00:35]} Qd2 {[%emt 0:44:07]} 34. Kf2 {[%emt 0:00:04]} Qd4+ {[%emt 0:00:00]} 35. Kg2 {[%emt 0:00:04]} Qd2 {[%emt 0:00:00]} 36. Kf2 {[%emt 0:00:04]} Qb2 {[%emt 0:00:00]} 37. Kf1 {[%emt 0:00:25]} Qc1+ {[%emt 0:00:00]} 38. Kg2 {[%emt 0:00:08]} Qd2 {[%emt 0:00:00]} 39. Kf2 {[%emt 0:00:18]} Qd4+ {[%emt 0:03:00]} 1/2-1/2